bitfinex/quotes_SOLUSD_20211001
["timestamp","ask_amount","ask_price","bid_price","bid_amount"]
[1633097436114,2.24,151.82,151.72,1.90891586]
[1633097436715,2.24,151.82,151.73,1.90894432]
[1633097437713,2.24,151.82,151.74,1.90886322]
[1633097438713,2.24,151.82,151.72,493.08973741]
[1633097438714,2.24,151.82,151.73,1.90873235]
[1633097439515,2.24,151.82,151.74,1.90858008]
[1633097439719,2.24,151.82,151.73,1.9086194]
[1633097439916,2.24,151.82,151.74,1.90853167]
[1633097440118,2.24,151.82,151.75,1.90845433]
[1633097440316,2.24,151.82,151.74,1.90830011]
[1633097440516,2.24,151.82,151.72,494.99838591]
[1633097440718,2.24,151.82,151.72,493.08973741]
[1633097441116,2.24,151.82,151.71,73.8728]
[1633097441317,2.24,151.82,151.7,1.90885433]
[1633097441518,2.24,151.82,151.74,1.90835162]
[1633097442319,2.24,151.82,151.73,1.90831137]
[1633097442719,2.24,151.82,151.72,1.90846542]
[1633097442919,2.24,151.82,151.7,7.53098367]
[1633097442920,2.24,151.82,151.73,1.90842376]
[1633097443319,2.24,151.82,151.72,1.90836528]
[1633097443518,2.24,151.82,151.73,1.90831689]
[1633097446021,26.05045384,151.81,151.72,1.90829561]
[1633097446221,28.29045384,151.81,151.72,1.90829561]
[1633097446421,28.29045384,151.81,151.71,1.90837468]
[1633097447022,2.24,151.81,151.71,1.90837468]
[1633097447222,2.24,151.81,151.72,1.90832082]
[1633097447621,2.24,151.81,151.74,1.90810126]
[1633097448822,2.24,151.81,151.75,1.90789464]
[1633097449025,28.16773962,151.8,151.75,1.90789464]
[1633097449223,2.24,151.8,151.71,1.90829919]
[1633097449424,2.24,151.8,151.72,1.90825198]
[1633097451924,2.24,151.8,151.73,1.90806912]
[1633097452125,2.24,151.8,151.72,1.90809052]
[1633097452328,2.24,151.8,151.73,1.90808418]
[1633097452924,2.24,151.8,151.72,1.90811078]
[1633097455027,2.24,151.8,151.73,1.90819677]
[1633097455629,2.24,151.8,151.74,1.90818301]
[1633097456230,2.24,151.8,151.75,1.90815323]
[1633097457430,32.03603055,151.8,151.75,1.90815323]
[1633097457628,32.03603055,151.8,151.73,1.90862611]
[1633097457828,32.03603055,151.8,151.72,1.90872183]
[1633097458230,32.03603055,151.8,151.73,1.90890936]
[1633097458631,2.24,151.8,151.73,1.90890936]
[1633097458831,2.24,151.8,151.74,1.90882909]
[1633097460134,2.24,151.8,151.75,1.90906976]
[1633097461735,2.24,151.8,151.77,1.90874079]
[1633097461934,2.24,151.8,151.78,1.90870141]
[1633097462136,2.24,151.8,151.77,1.90877163]
[1633097462336,2.24,151.8,151.78,1.90883261]
[1633097463138,2.24,151.8,151.79,1.90887721]
[1633097463540,29.03700924,151.8,151.78,1.90892661]
[1633097463939,29.03700924,151.8,151.75,1.90930128]
[1633097464141,29.03700924,151.8,151.74,1.90934672]
[1633097464142,2.24,151.8,151.74,1.90934672]
[1633097464338,2.24,151.8,151.69,73.917]
[1633097464339,2.24,151.8,151.76,1.90933703]
[1633097464541,2.24,151.8,151.75,1.90942599]
[1633097465143,2.24,151.8,151.74,1.90963528]
[1633097465340,2.24,151.8,151.7,11.35415795]
[1633097465341,2.24,151.8,151.75,1.90955619]
[1633097466141,2.24,151.8,151.76,1.90946766]
[1633097467143,2.24,151.8,151.77,1.90937012]
[1633097467545,2.24,151.8,151.7,18.88865134]
[1633097467546,2.24,151.8,151.78,1.90924773]
[1633097467749,2.24,151.8,151.79,1.90905743]
[1633097467946,2.24,151.8,151.76,3.81811486]
[1633097468146,2.24,151.8,151.79,1.90909042]
[1633097468954,2.24,151.8,151.75,3.81804651]
[1633097468955,2.24,151.8,151.76,3.81783717]
[1633097469347,2.24,151.8,151.79,1.90891891]
[1633097469947,2.24,151.8,151.76,3.81783717]
[1633097470148,2.24,151.8,151.79,1.90883006]
[1633097470746,2.24,151.8,151.77,406.98087877]
[1633097471147,2.24,151.8,151.79,1.90873199]
[1633097471551,2.24,151.83,151.79,23.537]
[1633097471748,2.24,151.83,151.8,1.90871223]
[1633097472349,2.24,151.83,151.79,1.90873161]
[1633097473750,2.24,151.83,151.78,1.9087598]
[1633097474548,2.24,151.83,151.79,1.90867158]
[1633097475651,2.24,151.83,151.8,1.90850411]
[1633097476653,2.24,151.83,151.81,1.9081722]
[1633097476854,2.24,151.83,151.82,1.9081686]
[1633097477961,2.24,151.83,151.81,1.90802836]
[1633097478162,2.24,151.83,151.82,1.90798802]
[1633097478563,2.24,151.87,151.81,1.90791351]
[1633097481360,2.24,151.87,151.83,1.90745757]
[1633097481762,2.24,151.94,151.85,1.90699596]
[1633097481963,2.24,151.94,151.88,1.90289309]
[1633097482160,2.24,151.94,151.86,1.90216727]
[1633097482362,2.24,151.94,151.85,1.90204429]
[1633097483660,2.24,151.94,151.84,1.89661054]
[1633097484260,2.24,151.94,151.81,3.79120111]
[1633097484261,2.24,151.94,151.85,1.89721324]
[1633097484860,2.24,151.94,151.89,391.91760791]
[1633097486861,2.24,151.94,151.85,1.86528431]
[1633097487060,2.24,151.94,151.84,1.85445445]
[1633097488461,2.24,151.94,151.83,1.86820123]
[1633097488666,2.24,151.94,151.82,1.87359123]
[1633097489961,2.24,151.94,151.81,78.57099371]
[1633097490561,2.24,151.94,151.8,1.88206963]
[1633097490761,2.24,151.94,151.84,485.68266595]
[1633097491763,2.24,151.94,151.78,1.86725423]
[1633097491764,2.26088,151.94,151.78,1.86725423]
[1633097492365,0.02088,151.93,151.77,1.84547313]
[1633097492567,2.24,151.92,151.77,1.84547313]
[1633097492765,0.02088,151.91,151.77,1.84547313]
[1633097492968,2.24,151.9,151.76,1.840067]
[1633097493165,25.62174303,151.89,151.76,1.840067]
[1633097493366,2.24,151.88,151.76,1.840067]
[1633097493967,0.02088,151.91,151.83,1.79566363]
[1633097494168,2.24,151.95,151.83,1.79566363]
[1633097494366,2.24,151.95,151.81,3.5485643]
[1633097494367,2.24,151.95,151.85,1.77428215]
[1633097494567,2.24,151.95,151.8,2.26088]
[1633097494568,2.24,151.95,151.86,1.76852319]
[1633097495767,2.24,151.95,151.87,1.75990879]
[1633097497168,2.24,151.95,151.91,358.55727779]
[1633097499174,1.74,151.95,151.91,358.55727779]
[1633097499370,2.24,151.99,151.91,358.55727779]
[1633097499771,2.24,151.99,151.87,78.644]
[1633097499970,2.24,151.99,151.84,56.80167634]
[1633097500171,2.24,151.99,151.84,55.0]
[1633097500370,2.24,151.99,151.84,56.85217331]
[1633097500770,2.24,151.99,151.85,1.88516736]
[1633097501773,2.24,151.99,151.86,1.88407167]
[1633097502672,2.24,151.99,151.88,1.86815502]
[1633097502871,2.24,151.99,151.9,1.85174748]
[1633097503072,2.24,151.99,151.9,15.894]
[1633097503273,2.24,152.02,151.91,1.8461885]
[1633097503474,2.24,152.02,151.93,1.83142591]
[1633097503675,2.24,152.02,151.92,1.82802897]
[1633097503876,2.24,152.02,151.92,1.84890897]
[1633097504277,2.24,152.02,151.92,0.02088]
[1633097504875,2.24,152.02,151.92,1.83663386]
[1633097505276,2.24,152.05,151.92,1.83663386]
[1633097505676,2.24,152.05,151.93,1.83452734]
[1633097506277,27.3698609,152.05,151.92,1.85051272]
[1633097506679,27.3698609,152.05,151.91,1.86648199]
[1633097506879,27.3698609,152.05,151.92,1.86556606]
[1633097507478,27.3698609,152.05,151.91,1.85737003]
[1633097508780,27.3698609,152.05,151.9,18.62135357]
[1633097508980,27.3698609,152.05,151.89,1.85801704]
[1633097510580,27.3698609,152.05,151.89,0.02088]
[1633097510982,27.3698609,152.05,151.88,1.82066723]
[1633097511181,27.3698609,152.05,151.86,76.08158]
[1633097511182,27.3698609,152.05,151.87,1.81652201]
[1633097511783,27.3907409,152.05,151.87,1.81652201]
[1633097512200,27.3907409,152.05,151.88,1.78267853]
[1633097512583,27.3907409,152.05,151.87,1.78809602]
[1633097512783,27.3907409,152.05,151.86,77.85346538]
[1633097512985,27.3698609,152.05,151.87,1.78476278]
[1633097513384,27.3698609,152.05,151.88,1.77917941]
[1633097514384,27.3698609,152.05,151.87,1.76194349]
[1633097515286,27.3698609,152.05,151.88,0.02088]
[1633097516486,2.24,152.05,151.89,1.74377314]
[1633097516688,2.24,152.05,151.91,1.73149446]
[1633097517288,2.24,152.05,151.92,1.71527532]
[1633097517488,2.24,152.05,151.91,1.7173703]
[1633097517687,2.24,152.05,151.91,153.4752]
[1633097518289,2.24,152.05,151.91,155.20046065]
[1633097518490,2.24,152.05,151.91,153.4752]
[1633097519087,2.24,152.05,151.91,155.19759424]
[1633097519488,2.24,152.05,151.91,153.4752]
[1633097520089,2.24,152.05,151.91,155.19619797]
[1633097520488,2.24,152.05,151.91,153.4752]
[1633097520689,2.24,152.05,151.91,155.19522643]
[1633097521789,2.24,152.05,151.92,1.7247845]
[1633097522392,2.24,152.05,151.91,155.19792312]
[1633097522589,2.24,152.05,151.97,457.49626847]
[1633097523993,2.24,152.05,151.91,1.73920804]
[1633097524208,2.26088,152.05,151.9,75.0]
[1633097524391,0.02088,152.04,151.9,1.75235323]
[1633097524590,2.24,152.03,151.89,1.75656856]
[1633097524796,28.3591712,152.02,151.88,1.76131786]
[1633097524995,2.24,152.01,151.88,1.76131786]
[1633097526794,2.24,152.01,151.91,1.72400052]
[1633097526995,2.24,152.01,151.9,1.74449105]
[1633097527395,2.24,152.01,151.91,1.74652179]
[1633097530698,2.24,152.01,151.94,1.76091796]
[1633097531299,2.24,152.05,151.95,1.75943864]
[1633097532704,2.24,152.05,151.96,1.74994586]
[1633097533519,2.24,152.05,151.97,1.74169436]
[1633097533718,2.24,152.05,151.96,1.74136364]
[1633097533916,2.24,152.05,151.97,1.73909354]
[1633097534518,2.24,152.05,151.95,353.63651298]
[1633097534519,2.24,152.05,151.96,1.73998759]
[1633097535519,29.02092571,152.04,151.96,1.73998759]
[1633097535722,29.02092571,152.04,151.95,353.63651298]
[1633097536520,29.02092571,152.04,151.93,1.79291401]
[1633097536521,2.24,152.03,151.93,1.79291401]
[1633097536721,2.24,152.03,151.92,1.80116004]
[1633097537120,2.24,152.03,151.91,1.80513062]
[1633097538520,2.24,152.03,151.9,1.78138825]
[1633097539522,2.24,152.03,151.91,1.77121425]
[1633097539721,2.24,152.03,151.93,1.76023372]
[1633097540523,2.24,152.03,151.92,1.7636484]
[1633097540721,2.24,152.03,151.93,1.76140205]
[1633097543523,2.24,152.03,151.94,1.73824823]
[1633097543724,2.24,152.03,151.93,1.74207978]
[1633097543923,2.24,152.03,151.94,1.74199103]
[1633097544324,2.24,152.03,151.93,1.73528969]
[1633097544524,2.24,152.03,151.94,1.73435537]
[1633097544724,2.24,152.03,151.93,1.73639277]
[1633097546324,2.24,152.03,151.95,1.72921925]
[1633097547925,2.24,152.03,151.96,1.71376898]
[1633097548127,2.24,152.03,151.95,1.71685006]
[1633097548324,2.24,152.03,151.94,1.7266047]
[1633097548529,2.24,152.03,151.93,1.73792573]
[1633097550527,2.24,152.03,151.94,1.75014423]
[1633097551327,2.24,152.03,151.93,1.74066744]
[1633097551927,2.24,152.03,151.94,1.75730659]
[1633097553332,2.24,152.03,151.95,1.74201826]
[1633097553731,2.24,152.03,151.96,1.73533306]
[1633097555532,2.24,152.03,151.97,1.76013483]
[1633097557333,2.24,152.03,151.96,1.7691085]
[1633097557733,2.24,152.03,151.97,1.77029897]
[1633097558535,2.24,152.03,151.96,1.77415917]
[1633097559336,2.24,152.03,151.97,1.77425696]
[1633097559535,2.24,152.03,151.96,1.77644811]
[1633097559935,2.24,152.03,151.97,1.77821835]
[1633097563441,2.24,152.03,151.98,1.7619832]
[1633097566141,2.24,152.03,151.97,1.76341865]
[1633097566346,2.24,152.03,151.98,1.75696962]
[1633097566543,2.24,152.03,151.97,1.75981619]
[1633097567743,2.24,152.03,151.98,1.7735962]
[1633097568546,2.24,152.03,151.99,1.77293682]
[1633097570348,2.24,152.03,151.98,1.76254458]
[1633097572150,2.24,152.03,151.99,1.76535388]
[1633097573354,2.24,152.03,151.98,1.76031159]
[1633097573552,2.24,152.03,151.99,1.75747553]
[1633097573754,2.24,152.03,152.0,1.74766975]
[1633097574155,2.24,152.03,152.01,1.74200453]
[1633097574956,2.24,152.03,152.0,1.74957489]
[1633097575355,2.24,152.03,152.01,1.75003092]
[1633097575755,2.24,152.03,152.0,1.7559591]
[1633097575956,2.24,152.03,152.01,1.75678399]
[1633097576157,2.24,152.03,152.0,1.76111289]
[1633097576356,2.24,152.03,152.01,1.75733116]
[1633097577054,2.24,152.03,152.0,1.76198297]
[1633097577455,2.24,152.03,152.01,1.76110902]
[1633097577655,2.24,152.03,152.0,1.74217427]
[1633097578454,2.24,152.03,152.01,1.73785877]
[1633097582968,2.24,152.03,152.02,1.76123683]
[1633097583163,104.0,152.05,151.99,0.00126002]
[1633097583363,213.9796,151.94,151.83,13.94487285]
[1633097583563,213.9796,151.94,151.84,5.43478707]
[1633097583564,28.16652106,151.93,151.84,5.43478707]
[1633097583763,28.16652106,151.93,151.81,73.6465]
[1633097583962,28.16652106,151.93,151.72,0.02088]
[1633097584162,14.35825944,151.92,151.72,0.02088]
[1633097584362,24.91151004,151.9,151.72,0.02088]
[1633097584567,2.24,151.89,151.72,0.02088]
[1633097585364,16.59825944,151.89,151.72,0.02088]
[1633097586270,2.24,151.89,151.73,2.24]
[1633097586865,2.24,151.89,151.76,419.5820874]
[1633097587468,27.26165377,151.88,151.76,419.5820874]
[1633097588266,2.24,151.87,151.76,419.5820874]
[1633097589374,2.24,151.87,151.73,2.24]
[1633097591275,2.24,151.87,151.72,0.02088]
[1633097591475,2.24,151.87,151.71,0.02088]
[1633097591675,2.24,151.87,151.74,0.02088]
[1633097592275,2.24,151.87,151.74,25.59386126]
[1633097592476,2.24,151.87,151.75,0.02088]
[1633097593780,30.26720967,151.87,151.75,0.02088]
[1633097593979,30.26720967,151.87,151.74,25.57298126]
[1633097594181,30.26720967,151.87,151.73,0.02088]
[1633097594381,30.26720967,151.87,151.7,78.76888]
[1633097594980,30.26720967,151.87,151.7,78.748]
[1633097595781,30.26720967,151.87,151.7,104.32098126]
[1633097596883,30.26720967,151.87,151.7,102.08098126]
[1633097599282,30.26720967,151.87,151.71,0.02088]
[1633097599483,30.26720967,151.87,151.7,102.08098126]
[1633097599484,30.26720967,151.87,151.7,102.10186126]
[1633097599882,30.26720967,151.87,151.71,26.46709237]
[1633097600682,2.24,151.87,151.71,26.46709237]
[1633097600883,2.24,151.87,151.71,41.37384751]
[1633097601082,2.24,151.87,151.72,2.24]
[1633097601283,2.24,151.87,151.73,0.02088]
[1633097601483,2.24,151.87,151.73,67.07729746]
[1633097601684,2.24,151.87,151.74,45.14229746]
[1633097601882,2.24,151.9,151.75,2.24]
[1633097602084,2.24,151.9,151.75,47.14475079]
[1633097602285,2.24,151.9,151.76,45.20189314]
[1633097602683,2.24,151.9,151.77,45.20189314]
[1633097602884,216.2196,151.94,151.77,62.42689314]
[1633097603082,216.2196,151.94,151.78,45.45882198]
[1633097603283,216.2196,151.94,151.79,2.24]
[1633097603484,216.2196,151.94,151.79,48.03660245]
[1633097603684,215.2196,151.94,151.8,45.00311134]
[1633097603884,215.2196,151.94,151.81,2.24]
[1633097604084,215.2196,151.94,151.81,47.24311134]
[1633097604284,215.2196,151.94,151.82,45.00311134]
[1633097604684,215.2196,151.94,151.83,45.01611134]
[1633097605084,215.2196,151.94,151.84,45.01611134]
[1633097605285,214.7196,151.94,151.84,45.01611134]
[1633097605485,214.7196,151.94,151.85,17.27280346]
[1633097605688,214.7196,151.94,151.91,484.79842232]
[1633097608589,0.02088,152.02,151.94,4.80619928]
[1633097608590,2.24,151.98,151.94,4.80619928]
[1633097608788,2.24,151.98,151.94,21.45019928]
[1633097610290,2.24,151.98,151.94,4.80619928]
[1633097614695,2.26088,151.98,151.94,4.80619928]
[1633097614895,2.24,151.98,151.94,4.80619928]
[1633097621901,0.74,151.98,151.94,4.80619928]
[1633097625807,23.35653531,151.98,151.94,4.80619928]
[1633097627816,0.74,151.98,151.94,4.80619928]
[1633097632914,500.0,151.97,151.94,4.80619928]
[1633097633114,2.24,151.96,151.94,4.80619928]
[1633097639317,2.24,151.96,151.94,4.30619928]
[1633097641019,500.0,151.97,151.94,4.30619928]
[1633097643928,2.24,151.96,151.94,4.30619928]
[1633097646053,23.77859844,151.95,151.94,4.30619928]
[1633097646247,26.01859844,151.95,151.94,4.30619928]
[1633097647146,26.01859844,151.95,151.94,1.82619928]
[1633097647347,2.24,151.95,151.94,1.82619928]
[1633097648346,23.89508176,151.95,151.94,1.82619928]
[1633097648546,2.24,151.95,151.94,1.82619928]
[1633097655851,1.81990072,151.94,151.9,528.38844838]
[1633097656853,1.81990072,151.94,151.85,5.72468192]
[1633097660356,1.81990072,151.94,151.84,5.72487053]
[1633097661158,1.81990072,151.94,151.88,346.52742825]
[1633097661559,1.81990072,151.94,151.84,5.72487053]
[1633097661958,1.81990072,151.94,151.84,34.27923397]
[1633097662359,1.81990072,151.94,151.85,9.89817428]
[1633097662559,1.81990072,151.94,151.85,15.60320963]
[1633097663160,1.81990072,151.94,151.85,5.70503535]
[1633097663560,1.81990072,151.94,151.85,15.63510517]
[1633097664361,1.81990072,151.94,151.84,28.55436344]
[1633097664964,2.24,151.95,151.85,9.87503453]
[1633097665161,500.0,151.97,151.85,9.89591453]
[1633097665364,500.0,151.97,151.87,5.67619694]
[1633097665762,500.0,151.97,151.87,44.08387154]
[1633097665963,500.0,151.97,151.87,34.23056038]
[1633097666561,500.0,151.97,151.87,90.23056038]
[1633097666963,500.0,151.97,151.88,27.9949718]
[1633097667162,500.0,151.97,151.9,505.48498547]
[1633097667563,500.0,151.97,151.9,539.69667021]
[1633097667763,500.0,151.97,151.91,28.68120301]
[1633097667966,500.0,151.97,151.91,18.89324437]
[1633097668166,500.0,151.97,151.92,18.89324437]
[1633097673172,500.0,151.97,151.92,48.31289762]
[1633097673373,500.0,151.97,151.95,3.72482509]
[1633097673773,500.0,151.97,151.94,6.04138564]
[1633097673974,500.0,151.97,151.93,9.77939357]
[1633097674175,500.0,151.97,151.94,3.74779305]
[1633097675576,500.0,151.97,151.95,3.73399946]
[1633097675777,500.0,151.97,151.94,3.74081907]
[1633097676376,500.0,151.97,151.93,9.76641218]
[1633097676576,500.0,151.97,151.94,3.7342327]
[1633097677376,500.0,151.97,151.93,9.76065506]
[1633097678578,500.0,151.97,151.93,6.02147401]
[1633097679476,500.0,151.97,151.92,29.41965325]
[1633097681479,23.26842508,151.96,151.92,29.41965325]
[1633097681678,500.0,151.97,151.92,29.41965325]
[1633097682284,500.0,151.97,151.9,563.48498547]
[1633097683779,500.0,151.97,151.91,6.09056076]
[1633097684179,500.0,151.97,151.9,563.48498547]
[1633097689890,500.0,151.97,151.91,6.10967054]
[1633097691289,500.0,151.97,151.9,567.29825907]
[1633097691490,500.0,151.97,151.9,563.48498547]
[1633097691691,500.0,151.97,151.91,6.11014501]
[1633097692690,500.0,151.97,151.91,9.92047167]
[1633097693292,500.0,151.97,151.91,6.11014501]
[1633097693995,500.0,151.97,151.91,9.92419711]
[1633097695000,500.0,151.97,151.92,3.81457246]
[1633097695998,500.0,151.97,151.93,3.81447569]
[1633097696198,500.0,151.97,151.93,9.9262425]
[1633097696399,500.0,151.97,151.93,3.81447569]
[1633097696599,500.0,151.97,151.94,3.81422898]
[1633097696798,500.0,151.97,151.93,3.81439075]
[1633097696998,500.0,151.97,151.94,3.81443182]
[1633097697198,500.0,151.97,151.91,6.11161545]
[1633097697199,500.0,151.97,151.95,3.80677897]
[1633097697404,500.0,151.97,151.94,3.80979759]
[1633097697601,500.0,151.97,151.95,3.80577616]
[1633097697999,500.0,151.97,151.93,3.81448764]
[1633097699001,500.0,151.97,151.94,3.81429368]
[1633097699203,450.6437,151.97,151.94,3.81429368]
[1633097699402,450.6437,151.97,151.95,3.8062066]
[1633097699802,450.6437,151.97,151.96,3.80429092]
[1633097700205,450.6437,151.97,151.95,3.80495115]
[1633097701205,450.6437,151.97,151.93,3.81446689]
[1633097701403,450.6437,151.97,151.94,3.81430825]
[1633097701804,450.6437,151.97,151.96,18.16176667]
[1633097705006,450.6437,151.97,151.92,53.83403076]
[1633097705206,450.6437,151.97,151.92,52.0]
[1633097705207,473.9517,151.97,151.92,52.0]
[1633097705430,24.75644748,151.96,151.92,52.0]
[1633097705808,24.75644748,151.96,151.9,505.48498547]
[1633097706210,2.24,151.95,151.9,505.48498547]
[1633097706409,2.24,151.95,151.85,1.89090672]
[1633097706609,0.02088,151.94,151.85,1.89090672]
[1633097706814,28.58846048,151.92,151.85,1.89090672]
[1633097707009,2.24,151.91,151.84,1.89454467]
[1633097707409,2.24,151.91,151.85,1.89376328]
[1633097708811,2.24,151.91,151.86,347.0754553]
[1633097709612,2.24,151.91,151.83,67.0]
[1633097709811,22.957,151.91,151.83,67.0]
[1633097710011,22.97788,151.91,151.83,67.0]
[1633097710411,22.97788,151.91,151.79,17.84420588]
[1633097711815,2.26088,151.91,151.8,1.90270839]
[1633097712215,2.26088,151.95,151.82,1.89209305]
[1633097712417,0.02088,151.95,151.83,2.24]
[1633097712615,450.6437,151.97,151.87,1.86283199]
[1633097712816,450.6437,151.97,151.92,1.83564551]
[1633097713218,450.6437,151.97,151.91,1.83366769]
[1633097713414,450.6437,151.97,151.92,19.43594224]
[1633097718021,478.15081113,151.97,151.92,19.43594224]
[1633097718223,450.6437,151.97,151.9,56.0]
[1633097718822,450.6437,151.97,151.95,417.07056767]
[1633097722427,450.6437,151.97,151.9,57.86903874]
[1633097722631,450.6437,151.97,151.9,56.0]
[1633097722828,450.6437,151.97,151.9,1.88629811]
[1633097723431,450.6437,151.97,151.89,1.89835608]
[1633097723629,450.6437,151.97,151.9,1.90150614]
[1633097723834,450.6437,151.97,151.89,1.90138633]
[1633097724029,479.94430786,151.97,151.89,1.90138633]
[1633097724630,479.94430786,151.97,151.88,45.90594861]
[1633097724832,479.94430786,151.97,151.88,44.0]
[1633097727231,479.94430786,151.97,151.9,555.01249575]
[1633097728249,2.24,151.96,151.85,48.27189549]
[1633097729844,2.24,151.96,151.86,29.84706436]
[1633097734060,2.24,151.96,151.83,1.90687993]
[1633097734267,23.898,151.96,151.81,31.7541784]
[1633097734462,0.02088,151.95,151.81,29.84706436]
[1633097734661,2.24,151.94,151.81,27.84706436]
[1633097734861,28.99842418,151.93,151.81,27.84706436]
[1633097735064,2.24,151.92,151.81,27.84706436]
[1633097735266,18.193,151.92,151.81,27.84706436]
[1633097737862,2.24,151.92,151.81,27.84706436]
[1633097738662,17.354,151.92,151.81,27.84706436]
[1633097738864,0.02088,151.91,151.81,27.84706436]
[1633097739062,2.26088,151.91,151.81,27.84706436]
[1633097739263,29.587906,151.9,151.81,27.84706436]
[1633097739466,2.24,151.89,151.81,27.84706436]
[1633097739664,2.24,151.89,151.79,399.22710045]
[1633097740365,2.24,151.89,151.81,0.6587]
[1633097740965,75.2177,151.95,151.81,30.04137547]
[1633097741165,2.76,151.94,151.81,31.94762884]
[1633097741365,2.76,151.94,151.82,1.90625025]
[1633097741565,2.76,151.94,151.81,31.94761549]
[1633097741765,21.94164647,151.93,151.82,1.90630721]
[1633097741968,2.76,151.92,151.82,1.90630721]
[1633097742167,22.377,151.92,151.81,30.04137547]
[1633097744973,2.76,151.92,151.81,30.04137547]
[1633097746471,25.524,151.92,151.81,0.6587]
[1633097747069,103.4659,151.92,151.81,0.6587]
[1633097748069,16.4816,151.9,151.81,0.6587]
[1633097748270,27.88867525,151.89,151.81,0.6587]
[1633097753475,16.4849,151.86,151.81,0.6587]
[1633097753674,22.67968084,151.84,151.81,0.6587]
[1633097753875,2.76,151.83,151.81,0.6587]
[1633097759579,2.76,151.83,151.81,0.1587]
[1633097759982,2.76,151.83,151.81,0.0087]
[1633097762483,28.82700848,151.81,151.69,78.8074]
[1633097762680,2.76,151.8,151.69,78.21610966]
[1633097763680,2.76,151.8,151.7,1.90863433]
[1633097764282,2.76,151.8,151.69,78.21598352]
[1633097764681,2.76,151.8,151.69,1.90858352]
[1633097764884,2.76,151.8,151.68,1.92960134]
[1633097765486,2.76,151.8,151.67,1.90878614]
[1633097766485,2.76,151.8,151.66,1.90875901]
[1633097766684,17.161,151.8,151.66,1.90875901]
[1633097767886,1.26,151.8,151.68,1.90854118]
[1633097768087,1.26,151.8,151.67,1.90860335]
[1633097768291,1.26,151.8,151.68,1.90859933]
[1633097768487,1.26,151.8,151.67,1.90865578]
[1633097769290,1.26,151.8,151.68,1.90861925]
[1633097770087,1.26,151.8,151.67,1.90865481]
[1633097771589,1.26,151.8,151.68,1.90899107]
[1633097772690,1.26,151.8,151.69,1.90918213]
[1633097772890,1.26,151.8,151.68,463.85224156]
[1633097773091,0.02088,151.79,151.63,66.90993612]
[1633097773292,29.69811765,151.77,151.61,1.90974146]
[1633097773495,2.76,151.76,151.62,1.90991596]
[1633097773692,25.558,151.76,151.61,1.90998115]
[1633097774093,16.4984,151.74,151.6,1.9100958]
[1633097774294,25.558,151.76,151.59,1.91021772]
[1633097774295,27.98296882,151.72,151.59,1.91021772]
[1633097774494,2.76,151.71,151.58,1.90984691]
[1633097774693,2.76,151.71,151.57,1.93095592]
[1633097774893,83.24825944,151.71,151.57,1.91007592]
[1633097775092,83.24825944,151.71,151.56,1.91023343]
[1633097775294,83.24825944,151.71,151.54,53.9097371]
[1633097775496,23.71918412,151.65,151.51,1.91013708]
[1633097775693,2.76,151.64,151.51,1.91013708]
[1633097776292,2.76,151.64,151.5,74.6265]
[1633097776893,24.54001569,151.62,151.49,77.6882]
[1633097777095,2.78088,151.61,151.49,77.6882]
[1633097777295,20.49188,151.61,151.49,77.6882]
[1633097777494,20.49188,151.61,151.43,1.91050392]
[1633097777694,23.41725485,151.59,151.42,1.91053549]
[1633097777896,2.76,151.58,151.43,1.91052047]
[1633097778100,2.78088,151.58,151.4,1.91081179]
[1633097778296,75.51908,151.58,151.41,1.91075791]
[1633097778495,23.35011916,151.56,151.37,1.90988033]
[1633097778698,2.76,151.55,151.37,1.90988033]
[1633097779300,2.76,151.55,151.36,0.02088]
[1633097779495,2.76,151.55,151.36,1.92985943]
[1633097779896,2.76,151.55,151.38,1.90864434]